[Event "December 5 Late 2023"]
[Site "https://www.chess.com"]
[Date "2023.12.05"]
[Round "1"]
[White "Kanakaris, Georgios"]
[Black "Nita, Lucian"]
[Result "1-0"]
[Board "97"]
[TimeControl "180+1"]
[WhiteFideId "4209460"]
[BlackFideId "1206923"]
[WhiteElo "2691"]
[BlackElo "2368"]
[WhiteTeam "GRE"]
[BlackTeam "ROU"]
[WhiteClock "0:00:23"]
[BlackClock "0:00:08"]

1. d4 {[%clk 0:03:00]}  d6 {[%clk 0:03:00]} 2. Nf3 {[%clk 0:03:01]}  Nd7 {[%clk 0:03:00]} 3. g3 {[%clk 0:03:01]}  e5 {[%clk 0:02:59]} 4. dxe5 {[%clk 0:03:01]}  dxe5 {[%clk 0:02:59]} 5. Bg2 {[%clk 0:03:01]}  Ngf6 {[%clk 0:02:59]} 6. O-O {[%clk 0:03:00]}  Bc5 {[%clk 0:02:59]} 7. Nc3 {[%clk 0:02:58]}  O-O {[%clk 0:02:58]} 8. Bg5 {[%clk 0:02:56]}  h6 {[%clk 0:02:57]} 9. Bxf6 {[%clk 0:02:55]}  Qxf6 {[%clk 0:02:56]} 10. Ne4 {[%clk 0:02:53]}  Qe7 {[%clk 0:02:54]} 11. Nxc5 {[%clk 0:02:50]}  Nxc5 {[%clk 0:02:53]} 12. Qc1 {[%clk 0:02:38]}  Bf5 {[%clk 0:02:50]} 13. Qe3 {[%clk 0:02:31]}  f6 {[%clk 0:02:36]} 14. Nh4 {[%clk 0:02:01]}  Bh7 {[%clk 0:02:26]} 15. b4 {[%clk 0:02:00]}  Ne6 {[%clk 0:02:09]} 16. Bxb7 {[%clk 0:01:45]}  Rab8 {[%clk 0:02:09]} 17. Qxa7 {[%clk 0:01:39]}  c6 {[%clk 0:02:02]} 18. c3 {[%clk 0:01:25]}  Rxb7 {[%clk 0:02:00]} 19. Qa6 {[%clk 0:01:23]}  Rc7 {[%clk 0:01:54]} 20. Qc4 {[%clk 0:01:22]}  Kh8 {[%clk 0:01:52]} 21. a4 {[%clk 0:01:21]}  Ng5 {[%clk 0:01:49]} 22. a5 {[%clk 0:01:14]}  Ra8 {[%clk 0:01:34]} 23. Rfd1 {[%clk 0:01:12]}  Qf7 {[%clk 0:01:26]} 24. Qc5 {[%clk 0:01:05]}  Ne6 {[%clk 0:01:24]} 25. Qb6 {[%clk 0:01:02]}  g5 {[%clk 0:01:15]} 26. Ng2 {[%clk 0:00:58]}  Be4 {[%clk 0:01:10]} 27. Rd6 {[%clk 0:00:51]}  Qe7 {[%clk 0:01:04]} 28. Rad1 {[%clk 0:00:47]}  Rac8 {[%clk 0:00:54]} 29. Ne3 {[%clk 0:00:43]}  Rb7 {[%clk 0:00:40]} 30. Rxe6 {[%clk 0:00:40]}  Qf7 {[%clk 0:00:27]} 31. Rxf6 {[%clk 0:00:33]}  Qg7 {[%clk 0:00:27]} 32. Rxh6+ {[%clk 0:00:23]}  Qxh6 {[%clk 0:00:27]} 33. Qxb7 {[%clk 0:00:22]}  Rf8 {[%clk 0:00:26]} 34. Qe7 {[%clk 0:00:19]}  Qf6 {[%clk 0:00:18]} 35. Qxf6+ {[%clk 0:00:19]}  Rxf6 {[%clk 0:00:18]} 36. a6 {[%clk 0:00:20]}  c5 {[%clk 0:00:17]} 37. b5 {[%clk 0:00:21]}  Rb6 {[%clk 0:00:16]} 38. c4 {[%clk 0:00:21]}  Rb8 {[%clk 0:00:15]} 39. Ra1 {[%clk 0:00:21]}  Rb6 {[%clk 0:00:14]} 40. a7 {[%clk 0:00:21]}  Ba8 {[%clk 0:00:13]} 41. Rd1 {[%clk 0:00:22]}  Kg7 {[%clk 0:00:11]} 42. Rd8 {[%clk 0:00:22]}  Bb7 {[%clk 0:00:10]} 43. a8=Q {[%clk 0:00:22]}  Bxa8 {[%clk 0:00:08]} 44. Rxa8 {[%clk 0:00:23]} 1-0

[Event "December 5 Late 2023"]
[Site "https://www.chess.com"]
[Date "2023.12.05"]
[Round "1"]
[White "Alvarado, Carlos"]
[Black "Piesik, Piotr"]
[Result "1-0"]
[Board "98"]
[TimeControl "180+1"]
[WhiteFideId "3800555"]
[BlackFideId "1136194"]
[WhiteElo "2368"]
[BlackElo "2683"]
[WhiteTeam "PER"]
[BlackTeam "CZE"]
[WhiteClock "0:01:49"]
[BlackClock "0:02:39"]

1. d4 {[%clk 0:02:58]}  c5 {[%clk 0:02:58]} 2. d5 {[%clk 0:02:53]}  e5 {[%clk 0:02:58]} 3. e4 {[%clk 0:02:51]}  d6 {[%clk 0:02:58]} 4. Bb5+ {[%clk 0:02:50]}  Nd7 {[%clk 0:02:58]} 5. a4 {[%clk 0:02:50]}  Be7 {[%clk 0:02:59]} 6. Nf3 {[%clk 0:02:36]}  Nf6 {[%clk 0:02:59]} 7. Nc3 {[%clk 0:02:34]}  O-O {[%clk 0:02:57]} 8. O-O {[%clk 0:02:33]}  Ne8 {[%clk 0:02:57]} 9. Bd3 {[%clk 0:02:24]}  Nc7 {[%clk 0:02:57]} 10. Nd2 {[%clk 0:02:21]}  Bg5 {[%clk 0:02:52]} 11. Nc4 {[%clk 0:02:20]}  Bxc1 {[%clk 0:02:51]} 12. Qxc1 {[%clk 0:02:21]}  Nb6 {[%clk 0:02:51]} 13. Nxb6 {[%clk 0:02:10]}  axb6 {[%clk 0:02:52]} 14. b3 {[%clk 0:02:10]}  f5 {[%clk 0:02:49]} 15. f3 {[%clk 0:02:10]}  f4 {[%clk 0:02:48]} 16. Qd2 {[%clk 0:01:57]}  Rf6 {[%clk 0:02:45]} 17. g4 {[%clk 0:01:52]}  h5 {[%clk 0:02:42]} 18. h3 {[%clk 0:01:51]}  Rh6 {[%clk 0:02:39]} 19. Rf2 {[%clk 0:01:49]} 1-0

[Event "December 5 Late 2023"]
[Site "https://www.chess.com"]
[Date "2023.12.05"]
[Round "1"]
[White "Amburgy, Ryan"]
[Black "Spichkin, Alexander"]
[Result "1-0"]
[Board "99"]
[TimeControl "180+1"]
[WhiteFideId "30924820"]
[BlackFideId "4144074"]
[WhiteElo "2681"]
[BlackElo "2367"]
[WhiteTeam "USA"]
[BlackTeam "RUS"]
[WhiteClock "0:02:32"]
[BlackClock "0:02:38"]

1. d4 {[%clk 0:03:00]}  e6 {[%clk 0:02:57]} 2. c4 {[%clk 0:03:00]}  f5 {[%clk 0:02:57]} 3. g3 {[%clk 0:03:00]}  Nf6 {[%clk 0:02:56]} 4. Bg2 {[%clk 0:03:00]}  Be7 {[%clk 0:02:57]} 5. Nh3 {[%clk 0:02:59]}  O-O {[%clk 0:02:54]} 6. O-O {[%clk 0:03:00]}  d6 {[%clk 0:02:50]} 7. b3 {[%clk 0:02:48]}  c6 {[%clk 0:02:51]} 8. Bb2 {[%clk 0:02:47]}  Nbd7 {[%clk 0:02:50]} 9. Nf4 {[%clk 0:02:45]}  e5 {[%clk 0:02:46]} 10. Ne6 {[%clk 0:02:45]}  Qe8 {[%clk 0:02:44]} 11. Nxf8 {[%clk 0:02:45]}  Qxf8 {[%clk 0:02:44]} 12. Nc3 {[%clk 0:02:43]}  Qf7 {[%clk 0:02:43]} 13. Rc1 {[%clk 0:02:36]}  Qh5 {[%clk 0:02:42]} 14. e4 {[%clk 0:02:32]}  Qh4 {[%clk 0:02:38]} 15. gxh4 {[%clk 0:02:32]} 1-0

[Event "December 5 Late 2023"]
[Site "https://www.chess.com"]
[Date "2023.12.05"]
[Round "1"]
[White "Riff, Vincent"]
[Black "Fernandez Diaz, Cristian"]
[Result "1-0"]
[Board "101"]
[TimeControl "180+1"]
[WhiteFideId "617776"]
[BlackFideId "22256687"]
[WhiteElo "2675"]
[BlackElo "2364"]
[WhiteTeam "FRA"]
[BlackTeam "ESP"]
[WhiteClock "0:00:28"]
[BlackClock "0:00:00"]

1. e4 {[%clk 0:03:00]}  c5 {[%clk 0:02:59]} 2. Nf3 {[%clk 0:02:55]}  Nc6 {[%clk 0:03:00]} 3. d4 {[%clk 0:02:56]}  cxd4 {[%clk 0:02:58]} 4. Nxd4 {[%clk 0:02:57]}  Nf6 {[%clk 0:02:54]} 5. Nc3 {[%clk 0:02:56]}  e5 {[%clk 0:02:55]} 6. Ndb5 {[%clk 0:02:56]}  d6 {[%clk 0:02:54]} 7. Nd5 {[%clk 0:02:57]}  Nxd5 {[%clk 0:02:53]} 8. exd5 {[%clk 0:02:58]}  Nb8 {[%clk 0:02:54]} 9. Qf3 {[%clk 0:02:57]}  Be7 {[%clk 0:02:38]} 10. Qc3 {[%clk 0:02:55]}  Na6 {[%clk 0:02:37]} 11. Be3 {[%clk 0:02:54]}  f5 {[%clk 0:02:27]} 12. Nxa7 {[%clk 0:02:41]}  f4 {[%clk 0:02:23]} 13. Bxa6 {[%clk 0:02:26]}  fxe3 {[%clk 0:02:14]} 14. Bb5+ {[%clk 0:02:26]}  Bd7 {[%clk 0:02:09]} 15. Nc6 {[%clk 0:02:24]}  exf2+ {[%clk 0:01:59]} 16. Kf1 {[%clk 0:02:24]}  Qb6 {[%clk 0:01:32]} 17. a4 {[%clk 0:02:22]}  Rf8 {[%clk 0:01:22]} 18. Qc4 {[%clk 0:01:57]}  Rc8 {[%clk 0:01:05]} 19. a5 {[%clk 0:01:48]}  Qc7 {[%clk 0:01:04]} 20. a6 {[%clk 0:01:40]}  bxc6 {[%clk 0:00:58]} 21. a7 {[%clk 0:01:38]}  Ra8 {[%clk 0:00:49]} 22. dxc6 {[%clk 0:01:34]}  Bf5 {[%clk 0:00:42]} 23. h3 {[%clk 0:00:52]}  h5 {[%clk 0:00:36]} 24. g4 {[%clk 0:00:51]}  Bg6 {[%clk 0:00:29]} 25. Rh2 {[%clk 0:00:51]}  Kd8 {[%clk 0:00:27]} 26. Rxf2 {[%clk 0:00:45]}  Rxf2+ {[%clk 0:00:26]} 27. Kxf2 {[%clk 0:00:46]}  Rxa7 {[%clk 0:00:27]} 28. Qg8+ {[%clk 0:00:36]}  Be8 {[%clk 0:00:25]} 29. Rxa7 {[%clk 0:00:37]}  Qxa7+ {[%clk 0:00:24]} 30. Ke2 {[%clk 0:00:38]}  Qc7 {[%clk 0:00:18]} 31. c4 {[%clk 0:00:38]}  hxg4 {[%clk 0:00:15]} 32. hxg4 {[%clk 0:00:39]}  Bf6 {[%clk 0:00:15]} 33. b4 {[%clk 0:00:37]}  Qe7 {[%clk 0:00:15]} 34. c7+ {[%clk 0:00:36]}  Kxc7 {[%clk 0:00:15]} 35. Bxe8 {[%clk 0:00:34]}  Bg5 {[%clk 0:00:13]} 36. Ba4 {[%clk 0:00:29]}  Bf4 {[%clk 0:00:13]} 37. Qa8 {[%clk 0:00:28]}  Qh4 {[%clk 0:00:13]} 38. Qc6+ {[%clk 0:00:28]}  Kb8 {[%clk 0:00:13]} 39. Qb6+ {[%clk 0:00:27]}  Kc8 {[%clk 0:00:12]} 40. Qc6+ {[%clk 0:00:27]}  Kb8 {[%clk 0:00:12]} 41. Qxd6+ {[%clk 0:00:28]}  Ka7 {[%clk 0:00:00]} 42. Qc7+ {[%clk 0:00:28]} 1-0

[Event "December 5 Late 2023"]
[Site "https://www.chess.com"]
[Date "2023.12.05"]
[Round "1"]
[White "Kostiukov, Alexandr"]
[Black "Vlassov, Nikolai"]
[Result "0-1"]
[Board "102"]
[TimeControl "180+1"]
[WhiteFideId "14108100"]
[BlackFideId "4103360"]
[WhiteElo "2362"]
[BlackElo "2664"]
[WhiteTeam "UKR"]
[BlackTeam "FID"]
[WhiteClock "0:00:00"]
[BlackClock "0:00:16"]

1. g3 {[%clk 0:02:54]}  h5 {[%clk 0:02:57]} 2. Nf3 {[%clk 0:02:53]}  h4 {[%clk 0:02:56]} 3. Nxh4 {[%clk 0:02:51]}  Rxh4 {[%clk 0:02:56]} 4. gxh4 {[%clk 0:02:50]}  e5 {[%clk 0:02:56]} 5. d4 {[%clk 0:02:50]}  Qxh4 {[%clk 0:02:55]} 6. dxe5 {[%clk 0:02:49]}  Bc5 {[%clk 0:02:54]} 7. e3 {[%clk 0:02:47]}  Nc6 {[%clk 0:02:54]} 8. Qd5 {[%clk 0:02:45]}  b6 {[%clk 0:02:50]} 9. Bc4 {[%clk 0:02:35]}  Nh6 {[%clk 0:02:49]} 10. Nd2 {[%clk 0:02:22]}  Bb7 {[%clk 0:02:48]} 11. Nf3 {[%clk 0:02:11]}  Qh5 {[%clk 0:02:35]} 12. Qd1 {[%clk 0:01:16]}  Nxe5 {[%clk 0:02:21]} 13. Nxe5 {[%clk 0:01:12]}  Qxd1+ {[%clk 0:02:20]} 14. Kxd1 {[%clk 0:01:13]}  Bxh1 {[%clk 0:02:19]} 15. Ke2 {[%clk 0:01:08]}  O-O-O {[%clk 0:02:10]} 16. Ba6+ {[%clk 0:00:57]}  Kb8 {[%clk 0:02:10]} 17. Bd2 {[%clk 0:00:55]}  Be4 {[%clk 0:02:09]} 18. Bd3 {[%clk 0:00:52]}  Bb7 {[%clk 0:02:07]} 19. Rg1 {[%clk 0:00:50]}  f6 {[%clk 0:01:57]} 20. Ng6 {[%clk 0:00:45]}  Re8 {[%clk 0:01:52]} 21. b4 {[%clk 0:00:43]}  Bd6 {[%clk 0:01:51]} 22. h4 {[%clk 0:00:42]}  Kc8 {[%clk 0:01:45]} 23. a3 {[%clk 0:00:40]}  Kd8 {[%clk 0:01:43]} 24. c4 {[%clk 0:00:36]}  Nf7 {[%clk 0:01:37]} 25. Rc1 {[%clk 0:00:30]}  Ne5 {[%clk 0:01:31]} 26. Nxe5 {[%clk 0:00:30]}  Bxe5 {[%clk 0:01:29]} 27. Bg6 {[%clk 0:00:29]}  Rh8 {[%clk 0:01:27]} 28. h5 {[%clk 0:00:29]}  c5 {[%clk 0:01:24]} 29. f4 {[%clk 0:00:28]}  Bd6 {[%clk 0:01:23]} 30. Bc3 {[%clk 0:00:26]}  Kc7 {[%clk 0:01:18]} 31. Rd1 {[%clk 0:00:25]}  Ba6 {[%clk 0:00:59]} 32. b5 {[%clk 0:00:24]}  Bb7 {[%clk 0:00:59]} 33. a4 {[%clk 0:00:25]}  a6 {[%clk 0:00:58]} 34. a5 {[%clk 0:00:22]}  Bf8 {[%clk 0:00:41]} 35. axb6+ {[%clk 0:00:20]}  Kxb6 {[%clk 0:00:41]} 36. Rxd7 {[%clk 0:00:20]}  axb5 {[%clk 0:00:42]} 37. cxb5 {[%clk 0:00:19]}  Bc8 {[%clk 0:00:36]} 38. Rd8 {[%clk 0:00:19]}  Be6 {[%clk 0:00:36]} 39. Rb8+ {[%clk 0:00:15]}  Kc7 {[%clk 0:00:36]} 40. Re8 {[%clk 0:00:14]}  Bc4+ {[%clk 0:00:36]} 41. Kf3 {[%clk 0:00:14]}  Bxb5 {[%clk 0:00:36]} 42. Ra8 {[%clk 0:00:14]}  Bc6+ {[%clk 0:00:36]} 43. Be4 {[%clk 0:00:14]}  Bxa8 {[%clk 0:00:36]} 44. Bxa8 {[%clk 0:00:15]}  Rxh5 {[%clk 0:00:36]} 45. Be4 {[%clk 0:00:14]}  f5 {[%clk 0:00:35]} 46. Ba5+ {[%clk 0:00:13]}  Kd6 {[%clk 0:00:34]} 47. Bb7 {[%clk 0:00:13]}  g6 {[%clk 0:00:33]} 48. Bc3 {[%clk 0:00:12]}  Rh3+ {[%clk 0:00:33]} 49. Ke2 {[%clk 0:00:12]}  Ke6 {[%clk 0:00:26]} 50. Bc8+ {[%clk 0:00:10]}  Kf7 {[%clk 0:00:26]} 51. Bb7 {[%clk 0:00:09]}  Be7 {[%clk 0:00:26]} 52. Bd5+ {[%clk 0:00:08]}  Kf8 {[%clk 0:00:25]} 53. Be5 {[%clk 0:00:07]}  Bd8 {[%clk 0:00:20]} 54. Kd3 {[%clk 0:00:07]}  Ke7 {[%clk 0:00:18]} 55. Bb8 {[%clk 0:00:05]}  Bb6 {[%clk 0:00:18]} 56. Bc4 {[%clk 0:00:04]}  Kd7 {[%clk 0:00:17]} 57. Be5 {[%clk 0:00:04]}  Rg3 {[%clk 0:00:16]} 58. Bf7 {[%clk 0:00:03]}  Bc7 {[%clk 0:00:16]} 59. Bd5 {[%clk 0:00:03]}  Bxe5 {[%clk 0:00:16]} 60. fxe5 {[%clk 0:00:00]}  f4 {[%clk 0:00:16]} 0-1

[Event "December 5 Late 2023"]
[Site "https://www.chess.com"]
[Date "2023.12.05"]
[Round "1"]
[White "yaguigor"]
[Black "Zavgorodniy, Sergiy"]
[Result "1/2-1/2"]
[Board "104"]
[TimeControl "180+1"]
[BlackFideId "14110148"]
[WhiteElo "2359"]
[BlackElo "2661"]
[BlackTeam "UKR"]
[WhiteClock "0:00:52"]
[BlackClock "0:01:44"]

1. e4 {[%clk 0:02:57]}  c6 {[%clk 0:02:58]} 2. d4 {[%clk 0:02:57]}  d5 {[%clk 0:02:59]} 3. e5 {[%clk 0:02:57]}  Bf5 {[%clk 0:02:58]} 4. Nf3 {[%clk 0:02:56]}  e6 {[%clk 0:02:58]} 5. Be2 {[%clk 0:02:57]}  Nd7 {[%clk 0:02:58]} 6. O-O {[%clk 0:02:56]}  a6 {[%clk 0:02:58]} 7. c3 {[%clk 0:02:55]}  h6 {[%clk 0:02:57]} 8. a4 {[%clk 0:02:52]}  c5 {[%clk 0:02:52]} 9. Na3 {[%clk 0:02:43]}  Ne7 {[%clk 0:02:50]} 10. dxc5 {[%clk 0:02:39]}  Nxc5 {[%clk 0:02:49]} 11. Nd4 {[%clk 0:02:35]}  Bg6 {[%clk 0:02:49]} 12. Be3 {[%clk 0:02:26]}  Rc8 {[%clk 0:02:48]} 13. Nac2 {[%clk 0:02:19]}  Nf5 {[%clk 0:02:47]} 14. Nxf5 {[%clk 0:02:18]}  Bxf5 {[%clk 0:02:47]} 15. Nd4 {[%clk 0:02:17]}  Bg6 {[%clk 0:02:48]} 16. f4 {[%clk 0:02:15]}  Qd7 {[%clk 0:02:41]} 17. a5 {[%clk 0:02:08]}  Be7 {[%clk 0:02:40]} 18. Bg4 {[%clk 0:02:02]}  O-O {[%clk 0:02:27]} 19. f5 {[%clk 0:02:01]}  exf5 {[%clk 0:02:26]} 20. Nxf5 {[%clk 0:02:00]}  Bxf5 {[%clk 0:02:20]} 21. Bxf5 {[%clk 0:01:59]}  Ne6 {[%clk 0:02:21]} 22. Qg4 {[%clk 0:01:51]}  Bc5 {[%clk 0:02:19]} 23. Bxc5 {[%clk 0:01:41]}  Rxc5 {[%clk 0:02:20]} 24. Ra4 {[%clk 0:01:30]}  Qe7 {[%clk 0:02:02]} 25. Bxe6 {[%clk 0:01:25]}  Qxe6 {[%clk 0:01:56]} 26. Qxe6 {[%clk 0:01:24]}  fxe6 {[%clk 0:01:57]} 27. Rxf8+ {[%clk 0:01:23]}  Kxf8 {[%clk 0:01:58]} 28. Rb4 {[%clk 0:01:23]}  Rxa5 {[%clk 0:01:54]} 29. Rxb7 {[%clk 0:01:23]}  Rb5 {[%clk 0:01:48]} 30. Rxb5 {[%clk 0:01:21]}  axb5 {[%clk 0:01:49]} 31. Kf2 {[%clk 0:01:20]}  Ke7 {[%clk 0:01:49]} 32. Ke3 {[%clk 0:01:20]}  Kd7 {[%clk 0:01:49]} 33. Kd4 {[%clk 0:01:19]}  Kc6 {[%clk 0:01:49]} 34. h4 {[%clk 0:01:11]}  Kb6 {[%clk 0:01:46]} 35. h5 {[%clk 0:01:04]}  Kc6 {[%clk 0:01:46]} 36. b3 {[%clk 0:01:01]}  Kb6 {[%clk 0:01:45]} 37. b4 {[%clk 0:00:55]}  Kc6 {[%clk 0:01:45]} 38. Kd3 {[%clk 0:00:51]}  Kb6 {[%clk 0:01:45]} 39. Kd4 {[%clk 0:00:51]}  Kc6 {[%clk 0:01:45]} 40. Kd3 {[%clk 0:00:51]}  Kb6 {[%clk 0:01:44]} 41. Kd4 {[%clk 0:00:52]} 1/2-1/2

[Event "December 5 Late 2023"]
[Site "https://www.chess.com"]
[Date "2023.12.05"]
[Round "1"]
[White "Cooper, Aaron"]
[Black "Krallis, Christos"]
[Result "0-1"]
[Board "108"]
[TimeControl "180+1"]
[WhiteFideId "2634945"]
[BlackFideId "4298896"]
[WhiteElo "2351"]
[BlackElo "2657"]
[WhiteTeam "CAN"]
[BlackTeam "GRE"]
[WhiteClock "0:00:02"]
[BlackClock "0:00:53"]

1. d4 {[%clk 0:03:00]}  g6 {[%clk 0:03:00]} 2. e4 {[%clk 0:02:57]}  Bg7 {[%clk 0:02:59]} 3. Nc3 {[%clk 0:02:56]}  d6 {[%clk 0:02:59]} 4. Nf3 {[%clk 0:02:55]}  Bg4 {[%clk 0:02:58]} 5. Be2 {[%clk 0:02:54]}  Nf6 {[%clk 0:02:53]} 6. h3 {[%clk 0:02:50]}  Bxf3 {[%clk 0:02:52]} 7. Bxf3 {[%clk 0:02:50]}  c6 {[%clk 0:02:43]} 8. Be3 {[%clk 0:02:49]}  O-O {[%clk 0:02:39]} 9. Qd2 {[%clk 0:02:49]}  Nbd7 {[%clk 0:02:35]} 10. h4 {[%clk 0:02:49]}  h5 {[%clk 0:02:33]} 11. O-O-O {[%clk 0:02:44]}  b5 {[%clk 0:02:26]} 12. Bh6 {[%clk 0:02:42]}  b4 {[%clk 0:02:26]} 13. Ne2 {[%clk 0:02:42]}  Qa5 {[%clk 0:02:24]} 14. Kb1 {[%clk 0:02:40]}  Nb6 {[%clk 0:02:21]} 15. Bxg7 {[%clk 0:02:34]}  Kxg7 {[%clk 0:02:21]} 16. a3 {[%clk 0:02:19]}  Nc4 {[%clk 0:02:06]} 17. Qxb4 {[%clk 0:02:07]}  Qxb4 {[%clk 0:02:05]} 18. axb4 {[%clk 0:02:07]}  Rfb8 {[%clk 0:02:06]} 19. c3 {[%clk 0:02:05]}  a5 {[%clk 0:02:06]} 20. e5 {[%clk 0:01:54]}  dxe5 {[%clk 0:02:03]} 21. Bxc6 {[%clk 0:01:51]}  Ra7 {[%clk 0:02:01]} 22. b5 {[%clk 0:01:51]}  a4 {[%clk 0:01:58]} 23. Kc2 {[%clk 0:01:38]}  Ng4 {[%clk 0:01:54]} 24. Ra1 {[%clk 0:01:20]}  Nxf2 {[%clk 0:01:51]} 25. Rhe1 {[%clk 0:01:16]}  Ng4 {[%clk 0:01:48]} 26. d5 {[%clk 0:01:04]}  Nd6 {[%clk 0:01:40]} 27. Ng3 {[%clk 0:01:01]}  Nxb5 {[%clk 0:01:38]} 28. Re4 {[%clk 0:00:49]}  a3 {[%clk 0:01:31]} 29. Bxb5 {[%clk 0:00:49]}  Rxb5 {[%clk 0:01:31]} 30. Rxa3 {[%clk 0:00:48]}  Rxa3 {[%clk 0:01:29]} 31. bxa3 {[%clk 0:00:48]}  Rxd5 {[%clk 0:01:29]} 32. a4 {[%clk 0:00:45]}  Ra5 {[%clk 0:01:28]} 33. Rb4 {[%clk 0:00:43]}  Nf6 {[%clk 0:01:22]} 34. Kb3 {[%clk 0:00:40]}  Ra8 {[%clk 0:01:16]} 35. Rb5 {[%clk 0:00:40]}  e4 {[%clk 0:01:15]} 36. Re5 {[%clk 0:00:40]}  Rb8+ {[%clk 0:01:14]} 37. Kc2 {[%clk 0:00:40]}  Ra8 {[%clk 0:01:14]} 38. a5 {[%clk 0:00:40]}  e6 {[%clk 0:01:13]} 39. c4 {[%clk 0:00:34]}  Ng4 {[%clk 0:01:11]} 40. Rxe4 {[%clk 0:00:33]}  Rxa5 {[%clk 0:01:10]} 41. Kb3 {[%clk 0:00:31]}  Nf6 {[%clk 0:01:09]} 42. Re3 {[%clk 0:00:30]}  g5 {[%clk 0:01:06]} 43. Ne2 {[%clk 0:00:23]}  gxh4 {[%clk 0:01:06]} 44. Nc3 {[%clk 0:00:23]}  Rg5 {[%clk 0:01:06]} 45. Re2 {[%clk 0:00:18]}  Rg3 {[%clk 0:01:06]} 46. Kb4 {[%clk 0:00:18]}  h3 {[%clk 0:01:05]} 47. gxh3 {[%clk 0:00:18]}  Rxh3 {[%clk 0:01:05]} 48. c5 {[%clk 0:00:18]}  Rg3 {[%clk 0:00:57]} 49. c6 {[%clk 0:00:19]}  Ne8 {[%clk 0:00:57]} 50. Ne4 {[%clk 0:00:16]}  Rg4 {[%clk 0:00:57]} 51. Kb5 {[%clk 0:00:16]}  Rxe4 {[%clk 0:00:52]} 52. Rxe4 {[%clk 0:00:15]}  Nd6+ {[%clk 0:00:52]} 53. Kb6 {[%clk 0:00:10]}  Nxe4 {[%clk 0:00:53]} 54. c7 {[%clk 0:00:07]}  Nd6 {[%clk 0:00:53]} 55. Kc6 {[%clk 0:00:08]}  Nc8 {[%clk 0:00:52]} 56. Kd7 {[%clk 0:00:02]}  Na7 {[%clk 0:00:53]} 0-1

[Event "December 5 Late 2023"]
[Site "https://www.chess.com"]
[Date "2023.12.05"]
[Round "1"]
[White "Jaracz, Pawel"]
[Black "Diaz, Fernando"]
[Result "0-1"]
[Board "113"]
[TimeControl "180+1"]
[WhiteFideId "1102222"]
[BlackFideId "3701255"]
[WhiteElo "2650"]
[BlackElo "2336"]
[WhiteTeam "POL"]
[BlackTeam "PAR"]
[WhiteClock "0:01:01"]
[BlackClock "0:00:59"]

1. e4 {[%clk 0:02:57]}  e6 {[%clk 0:02:24]} 2. d3 {[%clk 0:02:56]}  d5 {[%clk 0:02:24]} 3. Nd2 {[%clk 0:02:54]}  Nf6 {[%clk 0:02:25]} 4. Ngf3 {[%clk 0:02:53]}  Bc5 {[%clk 0:02:25]} 5. e5 {[%clk 0:02:45]}  Nfd7 {[%clk 0:02:26]} 6. d4 {[%clk 0:02:45]}  Be7 {[%clk 0:02:26]} 7. Bd3 {[%clk 0:02:44]}  c5 {[%clk 0:02:27]} 8. c3 {[%clk 0:02:44]}  Nc6 {[%clk 0:02:28]} 9. O-O {[%clk 0:02:43]}  g5 {[%clk 0:02:28]} 10. Kh1 {[%clk 0:02:37]}  h5 {[%clk 0:02:25]} 11. dxc5 {[%clk 0:02:26]}  Nxc5 {[%clk 0:02:24]} 12. Bb5 {[%clk 0:02:23]}  Nd7 {[%clk 0:02:24]} 13. Qe2 {[%clk 0:02:19]}  a6 {[%clk 0:02:22]} 14. Bxc6 {[%clk 0:02:16]}  bxc6 {[%clk 0:02:22]} 15. Nd4 {[%clk 0:02:13]}  Bb7 {[%clk 0:02:20]} 16. f4 {[%clk 0:02:12]}  c5 {[%clk 0:02:18]} 17. N4b3 {[%clk 0:02:08]}  gxf4 {[%clk 0:01:55]} 18. Nf3 {[%clk 0:02:07]}  Qc7 {[%clk 0:01:50]} 19. Bxf4 {[%clk 0:02:06]}  O-O-O {[%clk 0:01:49]} 20. Bg5 {[%clk 0:01:51]}  Bxg5 {[%clk 0:01:40]} 21. Nxg5 {[%clk 0:01:51]}  Nxe5 {[%clk 0:01:39]} 22. Nxc5 {[%clk 0:01:50]}  Ng4 {[%clk 0:01:24]} 23. g3 {[%clk 0:01:18]}  Qxc5 {[%clk 0:01:21]} 24. Rxf7 {[%clk 0:01:17]}  d4+ {[%clk 0:01:10]} 25. Rxb7 {[%clk 0:01:16]}  Kxb7 {[%clk 0:01:10]} 26. h3 {[%clk 0:01:01]}  Qxg5 {[%clk 0:00:59]} 0-1